fUSD/lending_fUSD_20240301
["ID","MTS","AMOUNT","RATE_DAILY","PERIOD"]
[315916732,1709280632477,-150.19057286,0.00014897,2]
[315916733,1709280632487,-258.51689611,0.00014898,2]
[315916734,1709280632496,-155.0,0.00014898,2]
[315916735,1709280632506,-205.22300939,0.00014899,2]
[315916736,1709280632514,-88.81622285,0.00014998,2]
[315916737,1709280632546,-841.80222845,0.00014998,2]
[315916738,1709280632559,-74016.53469648,0.00014998,2]
[315916739,1709280632580,-3459.30250167,0.00014998,2]
[315916740,1709280632690,-353.62981947,0.00014998,2]
[315916741,1709280632702,-1778.08920812,0.00014998,2]
[315916743,1709280639204,-336.93522292,0.00014998,2]
[315916744,1709280639217,-370.106,0.00014998,2]
[315916745,1709280639271,-570.28642143,0.00014998,2]
[315916746,1709280639283,-298.53007006,0.00014998,2]
[315916747,1709280639366,-395.74000003,0.00014998,2]
[315916750,1709280640818,-3372.63180001,0.00014998,2]
[315916751,1709280640900,-155374.08933351,0.00014998,2]
[315916752,1709280640910,-300.0,0.00014999,2]
[315916753,1709280640920,-150.0,0.00014999,2]
[315916754,1709280640930,-19848.77472509,0.00015,2]
[315916755,1709280640940,-322.80407294,0.00015,2]
[315916756,1709280640949,-11842.70866922,0.00015,2]
[315916757,1709280640959,-205.22300921,0.00015325,2]
[315916758,1709280640969,-205.22300921,0.00015751,2]
[315916759,1709280640978,-20000.0,0.00016,2]
[315916760,1709280640987,-205.22300921,0.00016178,2]
[315916761,1709280640997,-210.0,0.00016499,2]
[315916762,1709280641006,-205.22300921,0.00016604,2]
[315916763,1709280641016,-205.22300921,0.0001703,2]
[315916764,1709280641025,-205.22300921,0.00017456,2]
[315916765,1709280641034,-205.22300921,0.00017882,2]
[315916766,1709280641043,-205.22300921,0.00018309,2]
[315916767,1709280641053,-205.22300921,0.00018735,2]
[315916768,1709280641062,-205.22300921,0.00019161,2]
[315916769,1709280641073,-597.37,0.00019291,2]
[315916770,1709280641084,-152.92,0.00019403,2]
[315916771,1709280641096,-152.92,0.00019504,2]
[315916772,1709280641106,-205.22300921,0.00019587,2]
[315916773,1709280641115,-152.92,0.00019605,2]
[315916774,1709280641125,-152.92,0.00019706,2]
[315916775,1709280641134,-23900.0,0.00019717,2]
[315916776,1709280641143,-152.92,0.00019807,2]
[315916777,1709280641153,-152.92,0.00019908,2]
[315916778,1709280641164,-394.60697585,0.0002,3]
[315916779,1709280641175,-152.92,0.0002001,2]
[315916780,1709280641184,-205.22300921,0.00020014,2]
[315916781,1709280641193,-152.92,0.00020111,2]
[315916782,1709280641203,-152.92,0.00020212,2]
[315916783,1709280641213,-152.92,0.00020313,2]
[315916784,1709280641222,-152.92,0.00020414,2]
[315916785,1709280641231,-205.22300921,0.0002044,2]
[315916786,1709280641240,-194.15,0.00020504,2]
[315916787,1709280641250,-205.22300921,0.00020866,2]
[315916788,1709280641259,-711.390726,0.00021,2]
[315916789,1709280641270,-1382.1,0.00021064,2]
[315916790,1709280641280,-200.0,0.00021129,2]
[315916791,1709280641290,-311.03,0.00021129,2]
[315916792,1709280641299,-500.0,0.00021283,2]
[315916793,1709280641366,-172.68,0.0002136,2]
[315916794,1709280641376,-16214.68727832,0.00021468,6]
[315916795,1709280641385,-16214.68727832,0.00021484,6]
[315916796,1709280641394,-16214.68727832,0.00021492,6]
[315916797,1709280641403,-16214.68727832,0.00021496,6]
[315916798,1709280641412,-597.37,0.00021555,2]
[315916799,1709280641421,-1441.1641594,0.00021639,2]
[315916800,1709280641430,-1321.3828504,0.00021688,2]
[315916801,1709280641439,-175.91,0.00021757,2]
[315916802,1709280641448,-42290.41767342,0.00021899,2]
[315916803,1709280641461,-1731.2295,0.00021899,2]
[315916804,1709280641711,-673.1149845,0.00021899,2]
[315916805,1709280641727,-474.779,0.00021899,2]
[315916819,1709280643675,-155.0,0.00021282,2]
[315916820,1709280643685,-205.22300921,0.00021292,2]
[315916821,1709280643694,-89.77699079,0.00021899,2]
[315916822,1709280643706,-1008.28687562,0.00021899,2]
[315916823,1709280643794,-1560.37230976,0.00021899,2]
[315916824,1709280643806,-2499.40594227,0.00021899,2]
[315916825,1709280643928,-1420.10342999,0.00021899,2]
[315916826,1709280643941,-687.37573899,0.00021899,2]
[315916827,1709280643966,-5378.256931,0.00021899,2]
[315916828,1709280643978,-24336.43382366,0.00021899,2]
[315916829,1709280643988,-4000.0,0.000219,2]
[315916830,1709280643997,-1441.1641594,0.00021901,2]
[315916831,1709280644007,-1000.0,0.00021916,2]
[315916832,1709280644017,-500.0,0.00021917,2]
[315916833,1709280644027,-500.0,0.00021917,2]
[315916834,1709280644037,-305.98318518,0.00021917,2]
[315916835,1709280644046,-500.0,0.00021917,2]
[315916836,1709280644056,-500.0,0.00021917,2]
[315916837,1709280644065,-510.84334058,0.00021917,2]
[315916838,1709280644076,-649.07,0.00021917,2]
[315916839,1709280644090,-500.0,0.00021917,2]
[315916840,1709280644105,-547.02,0.00021917,2]
[315916841,1709280644115,-500.0,0.00021917,2]
[315916842,1709280644127,-500.0,0.00021917,2]
[315916843,1709280644137,-964.57,0.00021917,2]
[315916844,1709280644147,-500.0,0.00021917,2]
[315916845,1709280644157,-3302.4,0.00021917,2]
[315916846,1709280644168,-500.0,0.00021917,2]
[315916847,1709280644184,-500.0,0.00021917,2]
[315916848,1709280644193,-500.0,0.00021917,2]
[315916849,1709280644203,-1444.04,0.00021917,2]
[315916850,1709280644212,-500.0,0.00021917,2]
[315916851,1709280644221,-665.31,0.00021917,2]
[315916852,1709280644231,-646.49,0.00021917,2]
[315916853,1709280644240,-500.0,0.00021917,2]
[315916854,1709280644250,-963.93,0.00021917,2]
[315916855,1709280644261,-500.0,0.00021917,2]
[315916856,1709280644270,-500.0,0.00021917,2]
[315916857,1709280644279,-500.0,0.00021917,2]
[315916858,1709280644290,-500.0,0.00021917,2]
[315916859,1709280644299,-911.36,0.00021917,2]
[315916860,1709280644309,-500.0,0.00021917,2]
[315916861,1709280644317,-545.11,0.00021917,2]
[315916862,1709280644328,-500.0,0.00021917,2]
[315916863,1709280644337,-500.0,0.00021917,2]
[315916864,1709280644346,-500.0,0.00021917,2]
[315916865,1709280644355,-500.0,0.00021917,2]
[315916866,1709280644365,-500.0,0.00021917,2]
[315916867,1709280644374,-500.0,0.00021917,2]
[315916868,1709280644384,-501.43418952,0.00021917,2]
[315916869,1709280644393,-500.0,0.00021917,2]
[315916870,1709280644402,-500.0,0.00021917,2]
[315916871,1709280644411,-500.0,0.00021917,2]
[315916872,1709280644420,-500.0,0.00021917,2]
[315916873,1709280644429,-500.0,0.00021917,2]
[315916874,1709280644439,-500.0,0.00021917,2]
[315916875,1709280644448,-500.0,0.00021917,2]
[315916876,1709280644457,-500.0,0.00021917,2]
[315916877,1709280644466,-500.0,0.00021917,2]
[315916878,1709280644476,-500.0,0.00021917,2]
[315916879,1709280644486,-574.95,0.00021917,2]
[315916880,1709280644496,-500.0,0.00021917,2]
[315916881,1709280644505,-500.0,0.00021917,2]
[315916882,1709280644514,-500.0,0.00021917,2]
[315916883,1709280644523,-1311.36,0.00021917,2]
[315916884,1709280644532,-659.83,0.00021917,2]
[315916885,1709280644541,-506.3,0.00021917,2]
[315916886,1709280644550,-806.15,0.00021917,2]
[315916887,1709280644558,-1135.26,0.00021917,2]
[315916888,1709280644568,-313.86,0.00021918,2]
[315916889,1709280644579,-532.8,0.00021918,2]
[315916890,1709280644588,-150.99,0.00021981,2]
[315916891,1709280644598,-500.0,0.00021999,2]
[315916892,1709280644607,-1172.5,0.00021999,2]
[315916893,1709280644617,-1036.69,0.00021999,2]
[315916894,1709280644626,-940.48,0.00022,3]
[315916895,1709280644635,-437.33609476,0.00022,2]
[315916896,1709280644645,-612.22801672,0.00022,2]
[315916897,1709280644654,-11302.89437177,0.00022,2]
[315916898,1709280644663,-999.0,0.00022,4]
[315916899,1709280644673,-313.86,0.00022033,2]
[315916900,1709280644682,-1321.3828504,0.00022052,2]
[315916901,1709280644691,-20000.0,0.000221,2]
[315916902,1709280644701,-313.86,0.00022149,2]
[315916903,1709280644710,-1441.1641594,0.00022149,2]
[315916904,1709280644719,-800.0,0.00022164,2]
[315916905,1709280644728,-361.98,0.00022181,3]
[315916906,1709280644738,-500.0,0.00022191,2]
[315916907,1709280644747,-500.0,0.00022191,2]
[315916908,1709280644757,-500.0,0.00022191,2]
[315916909,1709280644767,-500.0,0.00022191,2]
[315916910,1709280644776,-649.07,0.00022191,2]
[315916911,1709280644786,-500.0,0.00022191,2]
[315916912,1709280644796,-547.02,0.00022191,2]
[315916913,1709280644806,-500.0,0.00022191,2]
[315916914,1709280644816,-237.59342921,0.00022191,2]
[315916915,1709280644826,-964.57,0.00022191,2]
[315916916,1709280644836,-500.0,0.00022191,2]
[315916917,1709280644846,-3302.4,0.00022191,2]
[315916918,1709280644856,-500.0,0.00022191,2]
[315916919,1709280644866,-500.0,0.00022191,2]
[315916920,1709280644876,-500.0,0.00022191,2]
[315916921,1709280644885,-1444.04,0.00022191,2]
[315916922,1709280644895,-500.0,0.00022191,2]
[315916923,1709280644904,-665.31,0.00022191,2]
[315916924,1709280644914,-646.49,0.00022191,2]
[315916925,1709280644923,-500.0,0.00022191,2]
[315916926,1709280644932,-963.93,0.00022191,2]
[315916927,1709280644942,-500.0,0.00022191,2]
[315916928,1709280644951,-500.0,0.00022191,2]
[315916929,1709280644962,-500.0,0.00022191,2]
[315916930,1709280644971,-500.0,0.00022191,2]
[315916931,1709280644981,-911.36,0.00022191,2]
[315916932,1709280644990,-500.0,0.00022191,2]
[315916933,1709280645000,-545.11,0.00022191,2]
[315916934,1709280645009,-500.0,0.00022191,2]
[315916935,1709280645019,-500.0,0.00022191,2]
[315916936,1709280645028,-500.0,0.00022191,2]
[315916937,1709280645038,-500.0,0.00022191,2]
[315916938,1709280645047,-511.11365333,0.00022191,2]
[315916939,1709280645059,-500.0,0.00022191,2]
[315916940,1709280645068,-500.0,0.00022191,2]
[315916941,1709280645078,-500.0,0.00022191,2]
[315916942,1709280645088,-500.0,0.00022191,2]
[315916943,1709280645100,-500.0,0.00022191,2]
[315916944,1709280645109,-500.0,0.00022191,2]
[315916945,1709280645118,-500.0,0.00022191,2]
[315916946,1709280645128,-500.0,0.00022191,2]
[315916947,1709280645138,-500.0,0.00022191,2]
[315916948,1709280645147,-500.0,0.00022191,2]
[315916949,1709280645156,-500.0,0.00022191,2]
[315916950,1709280645165,-574.95,0.00022191,2]
[315916951,1709280645174,-500.0,0.00022191,2]
[315916952,1709280645185,-500.0,0.00022191,2]
[315916953,1709280645194,-500.0,0.00022191,2]
[315916954,1709280645203,-1311.36,0.00022191,2]
[315916955,1709280645213,-659.83,0.00022191,2]
[315916956,1709280645222,-506.3,0.00022191,2]
[315916957,1709280645234,-806.15,0.00022191,2]
[315916958,1709280645243,-1135.26,0.00022191,2]
[315916959,1709280645252,-1441.1641594,0.00022221,2]
[315916960,1709280645261,-313.86,0.00022264,2]
[315916961,1709280645270,-300.2998825,0.00022271,2]
[315916962,1709280645280,-385.58315216,0.00022271,2]
[315916963,1709280645288,-155.0,0.00022271,2]
[315916964,1709280645298,-155.0,0.00022271,2]
[315916965,1709280645307,-21170.11620747,0.00022271,2]
[315916966,1709280645316,-1217.18603733,0.00022271,2]
[315916967,1709280645326,-155.0,0.00022271,2]
[315916968,1709280645335,-258.7266289,0.00022271,2]
[315916969,1709280645343,-233.67398021,0.00022271,2]
[315916970,1709280645352,-1418.62049857,0.00022272,2]
[315916971,1709280645362,-500.0,0.00022273,2]
[315916972,1709280645371,-1172.5,0.00022273,2]
[315916973,1709280645380,-1036.69,0.00022273,2]
[315916974,1709280645389,-424.53,0.00022284,2]
[315916975,1709280645398,-413.8,0.00022284,2]
[315916976,1709280645407,-150.0,0.00022284,2]
[315916977,1709280645417,-345.06,0.00022284,2]
[315916978,1709280645426,-413.8,0.00022284,2]
[315916979,1709280645436,-424.53,0.00022284,2]
[315916980,1709280645445,-424.53,0.00022284,2]
[315916981,1709280645456,-413.8,0.00022284,2]
[315916982,1709280645465,-689.76,0.00022284,2]
[315916983,1709280645475,-424.53,0.000223,2]
[315916984,1709280645484,-150.0,0.000223,2]
[315916985,1709280645493,-413.8,0.000223,2]
[315916986,1709280645502,-917.8526,0.00022325,2]
[315916987,1709280645511,-377.07019713,0.00022352,2]
[315916988,1709280645520,-313.86,0.00022379,2]
[315916989,1709280645529,-1321.3828504,0.00022427,2]
[315916990,1709280645538,-2459.0926,0.00022447,2]
[315916991,1709280645547,-5486.03301726,0.00022449,3]
[315916992,1709280645557,-2545.64990829,0.00022449,3]
[315916993,1709280645566,-225.0,0.00022463,2]
[315916994,1709280645576,-205.0,0.00022463,2]
[315916995,1709280645585,-201.0,0.00022463,2]
[315916996,1709280645594,-500.0,0.00022465,2]
[315916997,1709280645603,-313.48820502,0.00022465,2]
[315916998,1709280645612,-481.83496461,0.00022465,2]
[315916999,1709280645622,-500.0,0.00022465,2]
[315917000,1709280645631,-500.0,0.00022465,2]
[315917001,1709280645640,-649.07,0.00022465,2]
[315917002,1709280645649,-500.0,0.00022465,2]
[315917003,1709280645659,-547.02,0.00022465,2]
[315917004,1709280645668,-500.0,0.00022465,2]
[315917005,1709280645677,-964.57,0.00022465,2]
[315917006,1709280645686,-500.0,0.00022465,2]
[315917007,1709280645695,-3302.4,0.00022465,2]
[315917008,1709280645705,-500.0,0.00022465,2]
[315917009,1709280645714,-500.0,0.00022465,2]
[315917010,1709280645724,-434.16177312,0.00022465,2]
[315917011,1709280645733,-1444.04,0.00022465,2]
[315917012,1709280645742,-500.0,0.00022465,2]
[315917013,1709280645751,-665.31,0.00022465,2]
[315917014,1709280645761,-646.49,0.00022465,2]
[315917015,1709280645771,-500.0,0.00022465,2]
[315917016,1709280645781,-963.93,0.00022465,2]
[315917017,1709280645790,-500.0,0.00022465,2]
[315917018,1709280645800,-500.0,0.00022465,2]
[315917019,1709280645810,-500.0,0.00022465,2]
[315917020,1709280645819,-500.0,0.00022465,2]
[315917021,1709280645830,-911.36,0.00022465,2]
[315917022,1709280645840,-500.0,0.00022465,2]
[315917023,1709280645850,-545.11,0.00022465,2]
[315917024,1709280645859,-500.0,0.00022465,2]
[315917025,1709280645869,-500.0,0.00022465,2]
[315917026,1709280645879,-500.0,0.00022465,2]
[315917027,1709280645888,-500.0,0.00022465,2]
[315917028,1709280645898,-500.0,0.00022465,2]
[315917029,1709280645907,-500.0,0.00022465,2]
[315917030,1709280645918,-500.0,0.00022465,2]
[315917031,1709280645927,-500.0,0.00022465,2]
[315917032,1709280645937,-500.0,0.00022465,2]
[315917033,1709280645947,-500.0,0.00022465,2]
[315917034,1709280645957,-500.0,0.00022465,2]
[315917035,1709280645966,-500.0,0.00022465,2]
[315917036,1709280645976,-500.0,0.00022465,2]
[315917037,1709280645985,-500.0,0.00022465,2]
[315917038,1709280645995,-574.95,0.00022465,2]
[315917039,1709280646005,-500.0,0.00022465,2]
[315917040,1709280646014,-500.0,0.00022465,2]
[315917041,1709280646024,-500.0,0.00022465,2]
[315917042,1709280646034,-1311.36,0.00022465,2]
[315917043,1709280646044,-659.83,0.00022465,2]
[315917044,1709280646053,-506.3,0.00022465,2]
[315917045,1709280646062,-806.15,0.00022465,2]
[315917046,1709280646071,-1135.26,0.00022465,2]
[315917047,1709280646085,-522.62396431,0.0002249,2]
[315917048,1709280646096,-1321.3828504,0.00022493,2]
[315917049,1709280646107,-313.86,0.00022495,2]
[315917051,1709280646116,-1600.8,0.00022499,2]
[315917053,1709280646127,-933.4,0.00022499,2]
[315917054,1709280646137,-500.0,0.00022499,2]
[315917056,1709280646146,-500.0,0.00022499,2]
[315917058,1709280646154,-364.28536998,0.00022499,2]
[315917059,1709280646164,-857.89,0.00022499,2]
[315917060,1709280646174,-638.16,0.00022499,2]
[315917061,1709280646183,-12441.63085894,0.000225,2]
[315917062,1709280646192,-1441.1641594,0.00022509,2]
[315917063,1709280646201,-6396.14579202,0.00022539,2]
[315917064,1709280646210,-50000.0,0.00022539,2]
[315917066,1709280646219,-500.0,0.00022547,2]
[315917068,1709280646228,-1172.5,0.00022547,2]
[315917070,1709280646237,-1036.69,0.00022547,2]
[315917072,1709280646246,-771.04,0.00022549,2]
[315917074,1709280646255,-646.32,0.00022549,2]
[315917076,1709280646264,-1251.2,0.00022549,2]
[315917078,1709280646273,-500.0,0.00022549,2]
[315917080,1709280646282,-979.87,0.00022549,2]
[315917082,1709280646291,-2305.35,0.00022549,2]
[315917083,1709280646301,-950.08,0.00022549,2]
[315917084,1709280646309,-2670.06,0.00022549,2]
[315917085,1709280646318,-3766.26,0.00022549,2]
[315917086,1709280646329,-1175.85,0.00022549,2]
[315917087,1709280646338,-979.73,0.00022549,2]
[315917088,1709280646347,-2181.82,0.00022549,2]
[315917089,1709280646356,-1221.36,0.00022549,2]
[315917090,1709280646366,-649.86,0.00022549,2]
[315917091,1709280646375,-931.8,0.00022549,2]
[315917092,1709280646385,-532.25,0.00022549,2]
[315917093,1709280646394,-1294.88,0.00022549,2]
[315917094,1709280646403,-910.56,0.00022549,2]
[315917095,1709280646412,-500.0,0.00022549,2]
[315917096,1709280646421,-1431.72,0.00022549,2]
[315917097,1709280646430,-500.0,0.00022549,2]
[315917098,1709280646439,-953.23,0.00022549,2]
[315917099,1709280646448,-676.22,0.00022549,2]
[315917100,1709280646458,-1367.64,0.00022549,2]
[315917101,1709280646467,-1435.79,0.00022549,2]
[315917102,1709280646477,-788.15,0.00022549,2]
[315917106,1709280646627,-505.06640235,0.00022599,2]
[315917109,1709280646648,-313.86,0.0002261,2]
[315917110,1709280646658,-768.4,0.00022699,2]
[315917111,1709280646668,-500.0,0.00022699,2]
[315917112,1709280646677,-500.0,0.00022699,2]
[315917113,1709280646686,-500.0,0.00022699,2]
[315917114,1709280646695,-500.0,0.00022699,2]
[315917115,1709280646705,-500.0,0.00022699,2]
[315917116,1709280646714,-500.0,0.00022699,2]
[315917117,1709280646723,-500.0,0.00022699,2]
[315917118,1709280646732,-500.0,0.00022699,2]
[315917119,1709280646742,-500.0,0.00022699,2]
[315917120,1709280646752,-500.0,0.00022699,2]
[315917121,1709280646762,-500.0,0.00022699,2]
[315917122,1709280646771,-500.0,0.00022699,2]
[315917123,1709280646780,-500.0,0.00022699,2]
[315917124,1709280646790,-500.0,0.00022699,2]
[315917125,1709280646799,-500.0,0.00022699,2]
[315917126,1709280646809,-500.0,0.00022699,2]
[315917127,1709280646818,-500.0,0.00022699,2]
[315917128,1709280646829,-501.57296215,0.00022699,2]
[315917129,1709280646838,-500.0,0.00022699,2]
[315917130,1709280646847,-500.0,0.00022699,2]
[315917131,1709280646857,-500.0,0.00022699,2]
[315917132,1709280646866,-500.0,0.00022699,2]
[315917133,1709280646875,-500.0,0.00022699,2]
[315917134,1709280646885,-500.0,0.00022699,2]
[315917135,1709280646894,-500.0,0.00022699,2]
[315917136,1709280646903,-500.0,0.00022699,2]
[315917137,1709280646913,-500.0,0.00022699,2]
[315917138,1709280646922,-500.0,0.00022699,2]
[315917139,1709280646932,-500.0,0.00022699,2]
[315917140,1709280646941,-500.0,0.00022699,2]
[315917141,1709280646951,-500.0,0.00022699,2]
[315917142,1709280646961,-500.0,0.00022699,2]
[315917143,1709280646970,-500.0,0.00022699,2]
[315917144,1709280646980,-500.0,0.00022699,2]
[315917145,1709280646989,-500.0,0.00022699,2]
[315917146,1709280646999,-500.0,0.00022699,2]
[315917147,1709280647008,-500.0,0.00022699,2]
[315917148,1709280647018,-500.0,0.00022699,2]
[315917149,1709280647028,-500.0,0.00022699,2]
[315917150,1709280647037,-504.90292373,0.00022699,2]
[315917151,1709280647047,-500.0,0.00022699,2]
[315917152,1709280647056,-530.38283812,0.00022699,2]
[315917153,1709280647066,-500.0,0.00022699,2]
[315917154,1709280647077,-551.74260903,0.00022699,2]
[315917155,1709280647091,-780.9,0.00022699,2]
[315917156,1709280647101,-500.0,0.00022699,2]
[315917157,1709280647111,-500.0,0.00022699,2]
[315917158,1709280647121,-504.63646214,0.00022699,2]
[315917159,1709280647131,-500.0,0.00022699,2]
[315917160,1709280647140,-500.0,0.00022699,2]
[315917161,1709280647149,-500.0,0.000227,2]
[315917162,1709280647159,-500.0,0.000227,2]
[315917163,1709280647170,-500.0,0.000227,2]
[315917164,1709280647180,-500.0,0.000227,2]
[315917165,1709280647189,-500.0,0.000227,2]
[315917166,1709280647199,-500.0,0.000227,2]
[315917167,1709280647208,-500.0,0.000227,2]
[315917168,1709280647218,-500.0,0.000227,2]
[315917169,1709280647228,-500.0,0.000227,2]
[315917170,1709280647237,-500.0,0.000227,2]
[315917171,1709280647248,-500.0,0.000227,2]
[315917172,1709280647257,-500.0,0.000227,2]
[315917173,1709280647267,-500.0,0.000227,2]
[315917174,1709280647276,-500.0,0.000227,2]
[315917175,1709280647285,-500.0,0.000227,2]
[315917176,1709280647295,-500.0,0.000227,2]
[315917177,1709280647304,-500.0,0.000227,2]
[315917178,1709280647314,-500.0,0.000227,2]
[315917179,1709280647323,-500.0,0.000227,2]
[315917180,1709280647334,-500.0,0.000227,2]
[315917181,1709280647344,-500.0,0.000227,2]
[315917182,1709280647353,-500.0,0.000227,2]
[315917183,1709280647363,-500.0,0.000227,2]
[315917184,1709280647373,-500.0,0.000227,2]
[315917185,1709280647382,-500.0,0.000227,2]
[315917186,1709280647391,-500.0,0.000227,2]
[315917187,1709280647400,-500.0,0.000227,2]
[315917188,1709280647409,-500.0,0.000227,2]
[315917189,1709280647419,-500.0,0.000227,2]
[315917190,1709280647428,-500.0,0.000227,2]
[315917191,1709280647437,-500.0,0.000227,2]
[315917192,1709280647447,-251.26059868,0.000227,2]
[315917193,1709280647456,-500.0,0.000227,2]
[315917194,1709280647465,-319.29528231,0.000227,2]
[315917195,1709280647475,-313.86,0.00022725,2]
[315917196,1709280647485,-500.0,0.00022738,2]
[315917197,1709280647495,-500.0,0.00022739,2]
[315917198,1709280647504,-500.0,0.00022739,2]
[315917199,1709280647514,-500.0,0.00022739,2]
[315917200,1709280647523,-649.07,0.00022739,2]
[315917201,1709280647532,-500.0,0.00022739,2]
[315917202,1709280647542,-547.02,0.00022739,2]
[315917203,1709280647551,-500.0,0.00022739,2]
[315917204,1709280647560,-964.57,0.00022739,2]
[315917205,1709280647570,-500.0,0.00022739,2]
[315917206,1709280647583,-3302.4,0.00022739,2]
[315917207,1709280647592,-500.0,0.00022739,2]
[315917208,1709280647602,-500.0,0.00022739,2]
[315917209,1709280647611,-1444.04,0.00022739,2]
[315917210,1709280647620,-500.0,0.00022739,2]
[315917211,1709280647630,-665.31,0.00022739,2]
[315917212,1709280647639,-646.49,0.00022739,2]
[315917213,1709280647649,-298.05639653,0.00022739,2]
[315917214,1709280647658,-963.93,0.00022739,2]
[315917215,1709280647667,-500.0,0.00022739,2]
[315917216,1709280647677,-500.0,0.00022739,2]
[315917217,1709280647686,-500.0,0.00022739,2]
[315917218,1709280647696,-500.0,0.00022739,2]
[315917219,1709280647705,-911.36,0.00022739,2]
[315917220,1709280647715,-500.0,0.00022739,2]
[315917221,1709280647725,-545.11,0.00022739,2]
[315917222,1709280647735,-500.0,0.00022739,2]
[315917223,1709280647745,-500.0,0.00022739,2]
[315917224,1709280647754,-500.0,0.00022739,2]
[315917225,1709280647764,-500.0,0.00022739,2]
[315917226,1709280647774,-500.0,0.00022739,2]
[315917227,1709280647783,-500.0,0.00022739,2]
[315917228,1709280647793,-500.0,0.00022739,2]
[315917229,1709280647802,-500.0,0.00022739,2]
[315917230,1709280647812,-500.0,0.00022739,2]
[315917231,1709280647821,-500.0,0.00022739,2]
[315917232,1709280647833,-500.0,0.00022739,2]
[315917233,1709280647842,-500.0,0.00022739,2]
[315917234,1709280647852,-500.0,0.00022739,2]
[315917235,1709280647861,-500.0,0.00022739,2]
[315917236,1709280647871,-574.95,0.00022739,2]
[315917237,1709280647881,-500.0,0.00022739,2]
[315917238,1709280647891,-500.0,0.00022739,2]
[315917239,1709280647900,-500.0,0.00022739,2]
[315917240,1709280647910,-1311.36,0.00022739,2]
[315917241,1709280647920,-659.83,0.00022739,2]
[315917242,1709280647929,-506.3,0.00022739,2]
[315917243,1709280647939,-806.15,0.00022739,2]
[315917244,1709280647948,-1135.26,0.00022739,2]
[315917245,1709280647958,-157.39,0.0002274,2]
[315917246,1709280647967,-505.06640233,0.00022747,2]
[315917247,1709280647977,-154.92796583,0.00022769,2]
[315917248,1709280647986,-1600.8,0.00022773,2]
[315917249,1709280647996,-933.4,0.00022773,2]
[315917250,1709280648006,-500.0,0.00022773,2]
[315917251,1709280648016,-500.0,0.00022773,2]
[315917252,1709280648025,-857.89,0.00022773,2]
[315917253,1709280648034,-638.16,0.00022773,2]
[315917254,1709280648044,-15571.86932803,0.00022799,2]
[315917255,1709280648053,-15571.86932794,0.00022799,2]
[315917256,1709280648063,-65586.59231995,0.00022799,2]
[315917257,1709280648073,-65586.59231987,0.00022799,2]
[315917258,1709280648085,-65586.59231987,0.00022799,2]
[315917259,1709280648097,-29457.1869778,0.00022799,2]
[315917260,1709280648168,-287.51296059,0.00022799,2]
[315917261,1709280648205,-289.37699997,0.00022799,2]
[315917262,1709280648217,-287.6220003,0.00022799,2]
[315917263,1709280648238,-592.09995,0.00022799,2]
[315917264,1709280649739,-156.49253061,0.00021282,2]
[315917265,1709280649749,-174.18160641,0.00021917,2]